[Event "44th Chess Olympiad Open 2022"]
[Site "Chennai"]
[Date "2022.08.01"]
[Round "4.68"]
[White "Jimma, Desalegn Fekadu"]
[Black "Moncur, Cecil"]
[Result "1-0"]
[WhiteElo "2112"]
[BlackElo "1815"]
[Annotator "NA RC"]
[PlyCount "121"]
[EventDate "2022.??.??"]
[TimeControl "60"]

1. d4 {[%emt 0:00:03]} g6 {[%emt 0:00:13]} 2. c4 {[%emt 0:00:04]} Bg7 {[%emt 0:
00:00]} 3. Nc3 {[%emt 0:00:06]} d6 {[%emt 0:00:07]} 4. e4 {[%emt 0:00:25]} Nc6
{[%emt 0:00:10]} 5. Be3 {[%emt 0:00:13]} e5 {[%emt 0:00:10]} 6. d5 {[%emt 0:00:
00]} Nce7 {[%emt 0:00:07]} 7. Bd3 {[%emt 0:00:22]} f5 {[%emt 0:01:21]} 8. exf5
{[%emt 0:05:40]} Nxf5 {[%emt 0:00:29]} 9. Bd2 {[%emt 0:00:58]} Nd4 {[%emt 0:00:
00]} 10. Nge2 {[%emt 0:00:30]} Ne7 {[%emt 0:03:42]} 11. Nxd4 {[%emt 0:01:51]}
exd4 {[%emt 0:00:10]} 12. Ne4 {[%emt 0:00:23]} O-O {[%emt 0:01:22]} 13. O-O {
[%emt 0:01:13]} c5 {[%emt 0:03:45]} 14. Bg5 {[%emt 0:07:04]} Qc7 {[%emt 0:00:
00]} 15. Qd2 {[%emt 0:01:18]} Nf5 {[%emt 0:01:16]} 16. Rae1 {[%emt 0:01:09]} h6
{[%emt 0:01:17]} 17. Bf4 {[%emt 0:00:42]} g5 {[%emt 0:01:13]} 18. Bg3 {[%emt 0:
00:00]} Bd7 {[%emt 0:01:54]} 19. Bc2 {[%emt 0:02:56]} Rae8 {[%emt 0:01:55]} 20.
Qd3 {[%emt 0:00:32]} Be5 {[%emt 0:02:18]} 21. f4 {[%emt 0:03:31]} gxf4 {
[%emt 0:01:06]} 22. Bxf4 {[%emt 0:01:23]} Bc8 {[%emt 0:00:50]} 23. Bxe5 {
[%emt 0:05:26]} Rxe5 {[%emt 0:02:34]} 24. Ng3 {[%emt 0:09:02]} Rxe1 {[%emt 0:
00:00]} 25. Rxe1 {[%emt 0:03:39]} Ne3 {[%emt 0:00:26]} 26. Bd1 {[%emt 0:23:42]}
Qf7 {[%emt 0:06:49]} 27. Bf3 {[%emt 0:03:44]} Bg4 {[%emt 0:00:00]} 28. Re2 {
[%emt 0:05:39]} Bxf3 {[%emt 0:02:27]} 29. gxf3 {[%emt 0:03:26]} Kg7 {[%emt 0:
00:00]} 30. Rf2 {[%emt 0:02:12]} Ng4 {[%emt 0:13:11]} 31. Rg2 {[%emt 0:04:04]}
Qxf3 {[%emt 0:02:33]} 32. Qxf3 {[%emt 0:01:19]} Rxf3 {[%emt 0:00:16]} 33. Ne4 {
[%emt 0:01:21]} Rf4 {[%emt 0:00:36]} 34. Nxd6 {[%emt 0:00:28]} Kf6 {[%emt 0:00:
00]} 35. Nxb7 {[%emt 0:00:42]} Ne3 {[%emt 0:00:33]} 36. Rf2 {[%emt 0:00:35]}
Rxf2 {[%emt 0:00:25]} 37. Kxf2 {[%emt 0:00:04]} Nd1+ {[%emt 0:00:16]} 38. Ke2 {
[%emt 0:04:04]} Nxb2 {[%emt 0:00:24]} 39. Nxc5 {[%emt 0:03:18]} Nxc4 {[%emt 0:
00:00]} 40. Kd3 {[%emt 0:00:14]} Ne5+ {[%emt 0:00:29]} 41. Ke4 {[%emt 0:30:26]}
h5 {[%emt 0:31:41]} 42. d6 {[%emt 0:01:37]} d3 {[%emt 0:00:26]} 43. Nxd3 {
[%emt 0:02:36]} Nxd3 {[%emt 0:01:00]} 44. Kxd3 {[%emt 0:00:04]} Ke6 {[%emt 0:
00:00]} 45. Ke4 {[%emt 0:00:38]} Kxd6 {[%emt 0:00:47]} 46. Kf5 {[%emt 0:00:13]}
Kd5 {[%emt 0:01:15]} 47. Kg5 {[%emt 0:00:02]} Ke5 {[%emt 0:01:42]} 48. Kxh5 {
[%emt 0:00:05]} Kf5 {[%emt 0:00:39]} 49. h4 {[%emt 0:00:23]} a6 {[%emt 0:00:08]
} 50. Kh6 {[%emt 0:00:30]} Kf6 {[%emt 0:01:24]} 51. a4 {[%emt 0:00:26]} Kf5 {
[%emt 0:02:41]} 52. a5 {[%emt 0:00:00]} Kf6 {[%emt 0:00:23]} 53. h5 {[%emt 0:
00:00]} Kf7 {[%emt 0:00:00]} 54. Kg5 {[%emt 0:00:00]} Kg7 {[%emt 0:00:00]} 55.
Kf5 {[%emt 0:00:00]} Kh6 {[%emt 0:00:00]} 56. Ke6 {[%emt 0:00:00]} Kxh5 {
[%emt 0:00:00]} 57. Kd6 {[%emt 0:00:00]} Kg6 {[%emt 0:00:00]} 58. Kc6 {[%emt 0:
00:00]} Kf7 {[%emt 0:00:00]} 59. Kb6 {[%emt 0:00:00]} Ke8 {[%emt 0:00:00]} 60.
Kxa6 {[%emt 0:00:00]} Kd8 {[%emt 0:00:00]} 61. Kb7 {[%emt 0:00:00]} 1-0

[Event "44th Chess Olympiad Open 2022"]
[Site "Chennai"]
[Date "2022.08.01"]
[Round "4.68"]
[White "Gole, Habtamu Ashenafi"]
[Black "Karelina, Polina"]
[Result "1-0"]
[WhiteElo "2044"]
[BlackElo "1835"]
[Annotator "NA RC"]
[PlyCount "55"]
[EventDate "2022.??.??"]
[TimeControl "60"]

1. e4 {[%emt 0:00:02]} d6 {[%emt 0:00:31]} 2. d4 {[%emt 0:00:18]} Nf6 {[%emt 0:
00:00]} 3. Bd3 {[%emt 0:01:23]} e5 {[%emt 0:01:55]} 4. dxe5 {[%emt 0:00:23]}
dxe5 {[%emt 0:00:22]} 5. Nf3 {[%emt 0:00:32]} Nc6 {[%emt 0:05:55]} 6. h3 {
[%emt 0:00:15]} Bc5 {[%emt 0:03:09]} 7. O-O {[%emt 0:01:48]} O-O {[%emt 0:00:
00]} 8. Bg5 {[%emt 0:01:04]} h6 {[%emt 0:02:44]} 9. Bh4 {[%emt 0:00:06]} Qd6 {
[%emt 0:02:45]} 10. Nbd2 {[%emt 0:05:51]} a6 {[%emt 0:02:34]} 11. Nc4 {[%emt 0:
00:00]} Qe6 {[%emt 0:01:03]} 12. Ne3 {[%emt 0:06:55]} Nh5 {[%emt 0:10:42]} 13.
Nxe5 {[%emt 0:05:42]} Bxe3 {[%emt 0:13:17]} 14. Nxc6 {[%emt 0:00:50]} Nf4 {
[%emt 0:17:40]} 15. Ne7+ {[%emt 0:00:20]} Kh8 {[%emt 0:00:13]} 16. fxe3 {
[%emt 0:00:15]} Nxh3+ {[%emt 0:02:54]} 17. gxh3 {[%emt 0:03:46]} Qxh3 {[%emt 0:
00:00]} 18. Qe1 {[%emt 0:00:09]} Bd7 {[%emt 0:10:04]} 19. Qg3 {[%emt 0:00:48]}
Qxg3+ {[%emt 0:00:39]} 20. Bxg3 {[%emt 0:00:15]} Rae8 {[%emt 0:00:22]} 21. Nd5
{[%emt 0:00:55]} c6 {[%emt 0:01:08]} 22. Nf4 {[%emt 0:00:59]} g5 {[%emt 0:00:
00]} 23. Nh5 {[%emt 0:00:33]} Bh3 {[%emt 0:02:34]} 24. Rf6 {[%emt 0:00:21]} Re6
{[%emt 0:01:28]} 25. Kh2 {[%emt 0:00:16]} Bg4 {[%emt 0:00:39]} 26. Rxe6 {
[%emt 0:00:09]} fxe6 {[%emt 0:00:30]} 27. Be5+ {[%emt 0:00:10]} Kh7 {[%emt 0:
00:00]} 28. Nf6+ {[%emt 0:00:12]} 1-0

[Event "44th Chess Olympiad Open 2022"]
[Site "Chennai"]
[Date "2022.08.01"]
[Round "4.68"]
[White "Knowles, Kendrick"]
[Black "Abera, Aydagnuhem Gezachew"]
[Result "0-1"]
[WhiteElo "1907"]
[BlackElo "2137"]
[Annotator "NA RC"]
[PlyCount "86"]
[EventDate "2022.??.??"]
[TimeControl "60"]

1. Nf3 {[%emt 0:00:32]} d5 {[%emt 0:00:16]} 2. d4 {[%emt 0:00:37]} Nf6 {
[%emt 0:00:22]} 3. g3 {[%emt 0:00:10]} Bf5 {[%emt 0:00:38]} 4. Bg2 {[%emt 0:00:
00]} c6 {[%emt 0:00:29]} 5. c4 {[%emt 0:00:30]} e6 {[%emt 0:00:40]} 6. Nc3 {
[%emt 0:01:27]} Nbd7 {[%emt 0:03:04]} 7. b3 {[%emt 0:00:30]} Bb4 {[%emt 0:00:
00]} 8. Bd2 {[%emt 0:06:17]} Ba3 {[%emt 0:02:42]} 9. cxd5 {[%emt 0:00:00]} exd5
{[%emt 0:04:27]} 10. Nh4 {[%emt 0:00:00]} Bg4 {[%emt 0:04:16]} 11. Qc2 {
[%emt 0:00:58]} O-O {[%emt 0:01:29]} 12. O-O {[%emt 0:00:38]} Re8 {[%emt 0:00:
00]} 13. f3 {[%emt 0:00:44]} Bh5 {[%emt 0:03:11]} 14. e4 {[%emt 0:00:17]} dxe4
{[%emt 0:02:31]} 15. fxe4 {[%emt 0:00:17]} Nf8 {[%emt 0:00:54]} 16. Qd3 {
[%emt 0:04:16]} Bc5 {[%emt 0:04:34]} 17. Nf5 {[%emt 0:01:16]} Ne6 {[%emt 0:00:
00]} 18. Na4 {[%emt 0:15:26]} Bxd4+ {[%emt 0:03:42]} 19. Nxd4 {[%emt 0:00:13]}
Nxd4 {[%emt 0:01:10]} 20. Kh1 {[%emt 0:02:01]} Be2 {[%emt 0:01:51]} 21. Qe3 {
[%emt 0:00:56]} Ng4 {[%emt 0:06:49]} 22. Qf4 {[%emt 0:01:40]} Bxf1 {[%emt 0:00:
00]} 23. Rxf1 {[%emt 0:00:11]} Ne5 {[%emt 0:00:54]} 24. Nc3 {[%emt 0:05:25]}
Qd7 {[%emt 0:02:15]} 25. Be3 {[%emt 0:00:49]} Rad8 {[%emt 0:02:19]} 26. Rd1 {
[%emt 0:02:10]} c5 {[%emt 0:03:32]} 27. Nd5 {[%emt 0:00:35]} Qg4 {[%emt 0:00:
00]} 28. Qf1 {[%emt 0:03:16]} Nec6 {[%emt 0:03:28]} 29. Rd2 {[%emt 0:03:43]}
Rxe4 {[%emt 0:04:13]} 30. Bh3 {[%emt 0:07:23]} Qf3+ {[%emt 0:04:09]} 31. Qxf3 {
[%emt 0:01:58]} Nxf3 {[%emt 0:00:11]} 32. Rd3 {[%emt 0:01:08]} Rxd5 {[%emt 0:
00:00]} 33. Rxd5 {[%emt 0:00:11]} Rxe3 {[%emt 0:00:28]} 34. Kg2 {[%emt 0:01:52]
} Nfd4 {[%emt 0:03:49]} 35. Bg4 {[%emt 0:01:29]} b6 {[%emt 0:01:54]} 36. Rd7 {
[%emt 0:01:23]} f5 {[%emt 0:01:01]} 37. Bd1 {[%emt 0:01:05]} Rd3 {[%emt 0:00:
00]} 38. b4 {[%emt 0:01:41]} Rxd1 {[%emt 0:01:09]} 39. b5 {[%emt 0:00:09]} Rd2+
{[%emt 0:01:18]} 40. Kf1 {[%emt 0:00:19]} Ne5 {[%emt 0:00:25]} 41. Rxa7 {
[%emt 0:30:57]} Nd3 {[%emt 0:30:40]} 42. a4 {[%emt 0:00:38]} Rf2+ {[%emt 0:00:
00]} 43. Kg1 {[%emt 0:00:10]} Nf3+ {[%emt 0:00:07]} 0-1

[Event "44th Chess Olympiad Open 2022"]
[Site "Chennai"]
[Date "2022.08.01"]
[Round "4.68"]
[White "Lockhart, Kenville"]
[Black "Tsige, Addisalem Temesgen"]
[Result "0-1"]
[WhiteElo "1551"]
[BlackElo "2072"]
[Annotator "NA RC"]
[PlyCount "102"]
[EventDate "2022.??.??"]
[TimeControl "60"]

1. e4 {[%emt 0:00:02]} c5 {[%emt 0:00:06]} 2. Nf3 {[%emt 0:00:42]} g6 {[%emt 0:
00:00]} 3. d4 {[%emt 0:00:59]} cxd4 {[%emt 0:00:03]} 4. Nxd4 {[%emt 0:00:39]}
Nc6 {[%emt 0:00:04]} 5. Bc4 {[%emt 0:02:09]} Nf6 {[%emt 0:02:42]} 6. Nc3 {
[%emt 0:00:57]} Bg7 {[%emt 0:00:12]} 7. Be3 {[%emt 0:00:37]} O-O {[%emt 0:00:
00]} 8. Bb3 {[%emt 0:00:56]} Re8 {[%emt 0:00:38]} 9. O-O {[%emt 0:00:13]} d6 {
[%emt 0:00:16]} 10. h3 {[%emt 0:01:06]} Bd7 {[%emt 0:00:30]} 11. f4 {[%emt 0:
00:00]} Rc8 {[%emt 0:01:22]} 12. a3 {[%emt 0:02:26]} Na5 {[%emt 0:00:29]} 13.
Qd3 {[%emt 0:01:15]} e5 {[%emt 0:02:51]} 14. fxe5 {[%emt 0:06:50]} dxe5 {
[%emt 0:02:21]} 15. Ndb5 {[%emt 0:02:34]} Nxb3 {[%emt 0:02:07]} 16. cxb3 {
[%emt 0:00:04]} Bxb5 {[%emt 0:01:40]} 17. Qxb5 {[%emt 0:00:46]} b6 {[%emt 0:00:
00]} 18. Rad1 {[%emt 0:02:30]} Qc7 {[%emt 0:06:23]} 19. Rd3 {[%emt 0:05:56]}
Qb7 {[%emt 0:03:25]} 20. Qa4 {[%emt 0:01:02]} a6 {[%emt 0:01:08]} 21. Nd5 {
[%emt 0:02:44]} b5 {[%emt 0:04:16]} 22. Qb4 {[%emt 0:05:23]} Nxd5 {[%emt 0:00:
00]} 23. Rxd5 {[%emt 0:00:05]} Rc2 {[%emt 0:01:44]} 24. Rf2 {[%emt 0:00:56]}
Bf8 {[%emt 0:01:28]} 25. Qa5 {[%emt 0:05:52]} Rxf2 {[%emt 0:02:07]} 26. Kxf2 {
[%emt 0:00:30]} f5 {[%emt 0:01:52]} 27. Kf3 {[%emt 0:05:40]} fxe4+ {[%emt 0:00:
00]} 28. Kxe4 {[%emt 0:00:08]} Qf7 {[%emt 0:04:29]} 29. g4 {[%emt 0:00:04]} Qf1
{[%emt 0:00:55]} 30. Rd7 {[%emt 0:03:21]} Qb1+ {[%emt 0:00:30]} 31. Kf3 {
[%emt 0:07:09]} Qh1+ {[%emt 0:03:18]} 32. Kg3 {[%emt 0:00:58]} e4 {[%emt 0:00:
00]} 33. Qd2 {[%emt 0:02:30]} Qf3+ {[%emt 0:06:03]} 34. Kh2 {[%emt 0:03:23]}
Bg7 {[%emt 0:02:54]} 35. Rxg7+ {[%emt 0:20:51]} Kxg7 {[%emt 0:01:10]} 36. Bh6+
{[%emt 0:00:00]} Kg8 {[%emt 0:00:31]} 37. Qd4 {[%emt 0:03:03]} Qf7 {[%emt 0:00:
00]} 38. Be3 {[%emt 0:00:34]} Qe6 {[%emt 0:00:18]} 39. Qc3 {[%emt 0:02:17]}
Qe5+ {[%emt 0:00:11]} 40. Kg2 {[%emt 0:00:12]} Qxc3 {[%emt 0:00:05]} 41. bxc3 {
[%emt 0:30:43]} Rf8 {[%emt 0:30:10]} 42. h4 {[%emt 0:04:53]} Rf3 {[%emt 0:00:
00]} 43. Bd4 {[%emt 0:02:25]} Kf7 {[%emt 0:00:42]} 44. Bh8 {[%emt 0:01:19]} Ke6
{[%emt 0:00:07]} 45. Bd4 {[%emt 0:00:02]} Kd5 {[%emt 0:00:40]} 46. b4 {[%emt 0:
00:00]} Kc4 {[%emt 0:00:11]} 47. h5 {[%emt 0:01:37]} Kb3 {[%emt 0:00:32]} 48.
hxg6 {[%emt 0:00:00]} hxg6 {[%emt 0:00:00]} 49. Be5 {[%emt 0:00:00]} Kxa3 {
[%emt 0:00:00]} 50. Bd4 {[%emt 0:00:00]} Kb3 {[%emt 0:00:00]} 51. Be5 {[%emt 0:
00:00]} Rxc3 {[%emt 0:00:00]} 0-1

[Event "44th Chess Olympiad Open 2022"]
[Site "Chennai"]
[Date "2022.08.01"]
[Round "4.69"]
[White "Rodriguez Santiago, Jaime"]
[Black "Njau, Albert"]
[Result "1/2-1/2"]
[WhiteElo "2067"]
[BlackElo "1842"]
[Annotator "NA RC"]
[PlyCount "129"]
[EventDate "2022.??.??"]
[TimeControl "60"]

1. c4 {[%emt 0:00:03]} e5 {[%emt 0:00:21]} 2. Nc3 {[%emt 0:00:05]} Nf6 {
[%emt 0:00:22]} 3. g3 {[%emt 0:00:07]} Nc6 {[%emt 0:00:28]} 4. Bg2 {[%emt 0:00:
00]} Bb4 {[%emt 0:01:02]} 5. Nd5 {[%emt 0:02:21]} Nxd5 {[%emt 0:04:38]} 6. cxd5
{[%emt 0:00:31]} Ne7 {[%emt 0:01:51]} 7. Nf3 {[%emt 0:00:38]} Bd6 {[%emt 0:00:
00]} 8. e4 {[%emt 0:00:26]} O-O {[%emt 0:05:43]} 9. O-O {[%emt 0:00:59]} c5 {
[%emt 0:04:25]} 10. dxc6 {[%emt 0:00:59]} dxc6 {[%emt 0:01:21]} 11. d4 {
[%emt 0:01:42]} exd4 {[%emt 0:02:02]} 12. Nxd4 {[%emt 0:00:15]} Kh8 {[%emt 0:
00:00]} 13. Be3 {[%emt 0:01:08]} f5 {[%emt 0:06:58]} 14. Qb3 {[%emt 0:11:54]}
fxe4 {[%emt 0:06:10]} 15. Bxe4 {[%emt 0:02:24]} Qb6 {[%emt 0:01:14]} 16. Qc2 {
[%emt 0:01:31]} Bc5 {[%emt 0:00:31]} 17. Rad1 {[%emt 0:09:45]} Bg4 {[%emt 0:00:
00]} 18. f3 {[%emt 0:04:19]} Bh3 {[%emt 0:02:16]} 19. Rf2 {[%emt 0:06:07]} Rad8
{[%emt 0:05:09]} 20. Rfd2 {[%emt 0:01:15]} Nd5 {[%emt 0:04:43]} 21. Bf2 {
[%emt 0:01:36]} h5 {[%emt 0:00:37]} 22. a3 {[%emt 0:03:35]} a5 {[%emt 0:06:32]}
23. Rc1 {[%emt 0:01:21]} Bxd4 {[%emt 0:01:28]} 24. Bxd4 {[%emt 0:00:06]} Qc7 {
[%emt 0:02:05]} 25. Bf2 {[%emt 0:04:07]} Qf7 {[%emt 0:00:37]} 26. Rcd1 {
[%emt 0:01:20]} Bf5 {[%emt 0:01:54]} 27. Bc5 {[%emt 0:01:46]} Ra8 {[%emt 0:00:
00]} 28. Bxf8 {[%emt 0:01:42]} Ne3 {[%emt 0:00:14]} 29. Qc5 {[%emt 0:02:49]}
Nxd1 {[%emt 0:02:02]} 30. Bxf5 {[%emt 0:00:20]} Qxf8 {[%emt 0:01:34]} 31. Qxf8+
{[%emt 0:03:55]} Rxf8 {[%emt 0:01:17]} 32. Bg6 {[%emt 0:00:25]} Ne3 {[%emt 0:
00:00]} 33. Rd7 {[%emt 0:01:16]} b5 {[%emt 0:05:23]} 34. Rc7 {[%emt 0:01:23]}
Nc4 {[%emt 0:00:42]} 35. Be4 {[%emt 0:18:41]} Nxb2 {[%emt 0:10:20]} 36. Rxc6 {
[%emt 0:03:19]} Rb8 {[%emt 0:01:34]} 37. Rc5 {[%emt 0:04:29]} Kg8 {[%emt 0:00:
00]} 38. Rxh5 {[%emt 0:00:23]} Rb6 {[%emt 0:00:23]} 39. Rf5 {[%emt 0:01:00]}
Na4 {[%emt 0:01:44]} 40. Bd3 {[%emt 0:01:25]} Nc3 {[%emt 0:03:56]} 41. Rc5 {
[%emt 0:30:38]} b4 {[%emt 0:30:33]} 42. axb4 {[%emt 0:01:06]} axb4 {[%emt 0:00:
00]} 43. Bc4+ {[%emt 0:00:07]} Kh7 {[%emt 0:01:54]} 44. Bb3 {[%emt 0:00:47]}
Ne2+ {[%emt 0:00:32]} 45. Kf2 {[%emt 0:03:28]} Nd4 {[%emt 0:00:20]} 46. Bc2+ {
[%emt 0:00:48]} g6 {[%emt 0:00:00]} 47. Ke3 {[%emt 0:00:00]} Ne6 {[%emt 0:00:
00]} 48. Re5 {[%emt 0:00:00]} b3 {[%emt 0:00:00]} 49. Bb1 {[%emt 0:00:00]} Kh6
{[%emt 0:00:00]} 50. Kd3 {[%emt 0:00:00]} Ng5 {[%emt 0:00:00]} 51. f4 {[%emt 0:
00:00]} Nf3 {[%emt 0:00:00]} 52. Re2 {[%emt 0:00:00]} Kh5 {[%emt 0:00:00]} 53.
h3 {[%emt 0:00:00]} Ng1 {[%emt 0:00:00]} 54. Re5+ {[%emt 0:00:00]} Kh6 {
[%emt 0:00:00]} 55. h4 {[%emt 0:00:00]} Nf3 {[%emt 0:00:00]} 56. Rd5 {[%emt 0:
00:00]} Nh2 {[%emt 0:00:00]} 57. Rd7 {[%emt 0:01:00]} Ng4 {[%emt 0:00:24]} 58.
Ke2 {[%emt 0:01:18]} b2 {[%emt 0:00:39]} 59. Kf3 {[%emt 0:03:41]} Nf6 {[%emt 0:
00:00]} 60. Rd3 {[%emt 0:00:14]} Kh5 {[%emt 0:00:17]} 61. Ra3 {[%emt 0:01:21]}
Rc6 {[%emt 0:00:44]} 62. Rb3 {[%emt 0:00:55]} Rc5 {[%emt 0:01:02]} 63. Rxb2 {
[%emt 0:00:25]} Rc3+ {[%emt 0:00:08]} 64. Kg2 {[%emt 0:00:12]} Kg4 {[%emt 0:00:
00]} 65. Bxg6 {[%emt 0:01:20]} 1/2-1/2

[Event "44th Chess Olympiad Open 2022"]
[Site "Chennai"]
[Date "2022.08.01"]
[Round "4.69"]
[White "Pinales Roussel, Gabriel"]
[Black "Veer Gandhi"]
[Result "1-0"]
[WhiteElo "1973"]
[BlackElo "1545"]
[Annotator "NA RC"]
[PlyCount "51"]
[EventDate "2022.??.??"]
[TimeControl "60"]

1. Nf3 {[%emt 0:00:03]} d5 {[%emt 0:00:29]} 2. c4 {[%emt 0:00:07]} e6 {[%emt 0:
00:00]} 3. b3 {[%emt 0:00:54]} Nf6 {[%emt 0:08:03]} 4. Bb2 {[%emt 0:00:30]} c6
{[%emt 0:07:58]} 5. g3 {[%emt 0:01:44]} Bc5 {[%emt 0:06:16]} 6. e3 {[%emt 0:00:
00]} Nbd7 {[%emt 0:01:04]} 7. Bg2 {[%emt 0:00:38]} Qc7 {[%emt 0:05:35]} 8. O-O
{[%emt 0:00:08]} O-O {[%emt 0:05:49]} 9. Nc3 {[%emt 0:01:30]} Rd8 {[%emt 0:00:
00]} 10. Qe2 {[%emt 0:01:33]} Bf8 {[%emt 0:01:31]} 11. d4 {[%emt 0:08:01]} Be7
{[%emt 0:06:56]} 12. e4 {[%emt 0:00:00]} dxe4 {[%emt 0:06:18]} 13. Nxe4 {
[%emt 0:00:00]} c5 {[%emt 0:07:04]} 14. Nc3 {[%emt 0:04:37]} Nf8 {[%emt 0:00:
00]} 15. Nb5 {[%emt 0:02:15]} Qb6 {[%emt 0:04:20]} 16. dxc5 {[%emt 0:03:08]}
Bxc5 {[%emt 0:01:06]} 17. a4 {[%emt 0:03:57]} a6 {[%emt 0:02:21]} 18. a5 {
[%emt 0:00:09]} Qc6 {[%emt 0:00:38]} 19. Ne5 {[%emt 0:00:25]} Qe8 {[%emt 0:00:
00]} 20. Nc7 {[%emt 0:00:12]} Qe7 {[%emt 0:00:27]} 21. Nxa8 {[%emt 0:00:07]}
Bb4 {[%emt 0:03:14]} 22. Rfd1 {[%emt 0:00:20]} Rxd1+ {[%emt 0:00:29]} 23. Qxd1
{[%emt 0:00:20]} Qc5 {[%emt 0:00:41]} 24. Nd3 {[%emt 0:04:15]} Qa7 {[%emt 0:00:
00]} 25. Nb6 {[%emt 0:00:31]} Bxa5 {[%emt 0:00:34]} 26. Nxc8 {[%emt 0:00:07]}
1-0

[Event "44th Chess Olympiad Open 2022"]
[Site "Chennai"]
[Date "2022.08.01"]
[Round "4.69"]
[White "Mlawa, Hemed"]
[Black "Gerena Rivas, Eliam"]
[Result "0-1"]
[WhiteElo "1896"]
[BlackElo "2102"]
[Annotator "NA RC"]
[PlyCount "174"]
[EventDate "2022.??.??"]
[TimeControl "60"]

1. d4 {[%emt 0:00:15]} Nf6 {[%emt 0:00:18]} 2. c4 {[%emt 0:00:13]} g6 {[%emt 0:
00:00]} 3. Nf3 {[%emt 0:00:49]} Bg7 {[%emt 0:00:10]} 4. g3 {[%emt 0:00:22]} O-O
{[%emt 0:00:23]} 5. Bg2 {[%emt 0:00:08]} d6 {[%emt 0:00:39]} 6. O-O {[%emt 0:
00:00]} Nbd7 {[%emt 0:00:47]} 7. Nc3 {[%emt 0:03:23]} e5 {[%emt 0:01:14]} 8. e4
{[%emt 0:03:17]} c6 {[%emt 0:01:41]} 9. dxe5 {[%emt 0:09:37]} dxe5 {[%emt 0:00:
00]} 10. Qc2 {[%emt 0:00:59]} Qc7 {[%emt 0:08:48]} 11. b3 {[%emt 0:06:51]} Re8
{[%emt 0:09:12]} 12. Rd1 {[%emt 0:10:00]} Bf8 {[%emt 0:03:28]} 13. Na4 {
[%emt 0:03:04]} b6 {[%emt 0:11:26]} 14. Bb2 {[%emt 0:06:29]} a5 {[%emt 0:09:04]
} 15. Rac1 {[%emt 0:09:35]} Bh6 {[%emt 0:10:27]} 16. Rb1 {[%emt 0:01:06]} Ba6 {
[%emt 0:10:43]} 17. Ba3 {[%emt 0:00:50]} Bf8 {[%emt 0:00:46]} 18. Bxf8 {
[%emt 0:00:47]} Kxf8 {[%emt 0:02:19]} 19. Rbc1 {[%emt 0:00:24]} Rad8 {[%emt 0:
00:00]} 20. Qe2 {[%emt 0:04:29]} Kg7 {[%emt 0:00:38]} 21. Bh3 {[%emt 0:01:09]}
Bc8 {[%emt 0:03:01]} 22. Kg2 {[%emt 0:03:33]} Nc5 {[%emt 0:07:47]} 23. Nxc5 {
[%emt 0:02:11]} Bxh3+ {[%emt 0:00:20]} 24. Kxh3 {[%emt 0:00:12]} bxc5 {[%emt 0:
00:00]} 25. Qe3 {[%emt 0:03:39]} Rd4 {[%emt 0:02:00]} 26. Nxd4 {[%emt 0:02:06]}
exd4 {[%emt 0:00:06]} 27. Qf4 {[%emt 0:01:30]} Qxf4 {[%emt 0:02:50]} 28. gxf4 {
[%emt 0:00:09]} Nxe4 {[%emt 0:00:24]} 29. Re1 {[%emt 0:01:18]} d3 {[%emt 0:00:
00]} 30. f3 {[%emt 0:04:29]} d2 {[%emt 0:04:50]} 31. fxe4 {[%emt 0:00:28]}
dxc1=Q {[%emt 0:00:20]} 32. Rxc1 {[%emt 0:00:49]} Rxe4 {[%emt 0:00:04]} 33. Kg3
{[%emt 0:01:10]} Re2 {[%emt 0:00:11]} 34. Rd1 {[%emt 0:09:14]} Rxa2 {[%emt 0:
00:00]} 35. Rd6 {[%emt 0:00:00]} Ra3 {[%emt 0:01:40]} 36. Rxc6 {[%emt 0:00:00]}
Rxb3+ {[%emt 0:00:47]} 37. Kg4 {[%emt 0:01:28]} h5+ {[%emt 0:05:07]} 38. Kh4 {
[%emt 0:07:34]} Rf3 {[%emt 0:00:00]} 39. Rxc5 {[%emt 0:00:30]} Rxf4+ {[%emt 0:
00:00]} 40. Kg3 {[%emt 0:00:00]} Rd4 {[%emt 0:00:00]} 41. Rxa5 {[%emt 0:30:47]}
Rxc4 {[%emt 0:00:02]} 42. Ra7 {[%emt 0:00:06]} g5 {[%emt 0:28:16]} 43. Rb7 {
[%emt 0:00:43]} Kg6 {[%emt 0:00:18]} 44. Rb6+ {[%emt 0:01:05]} f6 {[%emt 0:00:
00]} 45. Rb5 {[%emt 0:04:30]} Rc3+ {[%emt 0:01:04]} 46. Kg2 {[%emt 0:00:13]} g4
{[%emt 0:00:44]} 47. Rd5 {[%emt 0:01:19]} f5 {[%emt 0:00:36]} 48. Rb5 {[%emt 0:
00:00]} Rf3 {[%emt 0:00:00]} 49. h4 {[%emt 0:03:14]} Kf6 {[%emt 0:00:00]} 50.
Rb6+ {[%emt 0:00:00]} Ke5 {[%emt 0:00:00]} 51. Rb5+ {[%emt 0:00:00]} Kd4 {
[%emt 0:00:00]} 52. Ra5 {[%emt 0:00:00]} Rh3 {[%emt 0:00:00]} 53. Rxf5 {
[%emt 0:00:00]} Rxh4 {[%emt 0:00:00]} 54. Ra5 {[%emt 0:00:00]} Rh3 {[%emt 0:00:
00]} 55. Ra4+ {[%emt 0:00:00]} Ke5 {[%emt 0:00:00]} 56. Ra5+ {[%emt 0:03:19]}
Kf6 {[%emt 0:00:00]} 57. Rb5 {[%emt 0:00:00]} Kg6 {[%emt 0:00:00]} 58. Ra5 {
[%emt 0:00:00]} Rf3 {[%emt 0:00:00]} 59. Rb5 {[%emt 0:00:00]} Rf5 {[%emt 0:00:
00]} 60. Rb8 {[%emt 0:00:00]} h4 {[%emt 0:00:00]} 61. Rg8+ {[%emt 0:00:00]} Kh5
{[%emt 0:00:00]} 62. Kh2 {[%emt 0:00:00]} Rf2+ {[%emt 0:00:00]} 63. Kg1 {
[%emt 0:00:00]} g3 {[%emt 0:00:00]} 64. Rg7 {[%emt 0:01:56]} Rf5 {[%emt 0:00:
00]} 65. Kg2 {[%emt 0:00:00]} Rg5 {[%emt 0:00:00]} 66. Rh7+ {[%emt 0:00:00]}
Kg4 {[%emt 0:00:00]} 67. Rh8 {[%emt 0:00:00]} Rg7 {[%emt 0:00:00]} 68. Rh6 {
[%emt 0:03:40]} Rd7 {[%emt 0:00:00]} 69. Rg6+ {[%emt 0:00:00]} Kf4 {[%emt 0:00:
00]} 70. Rf6+ {[%emt 0:00:00]} Kg4 {[%emt 0:00:42]} 71. Rg6+ {[%emt 0:00:00]}
Kf5 {[%emt 0:00:43]} 72. Rg8 {[%emt 0:00:00]} Rd2+ {[%emt 0:01:39]} 73. Kg1 {
[%emt 0:00:00]} Kf4 {[%emt 0:00:28]} 74. Rg7 {[%emt 0:00:37]} h3 {[%emt 0:00:
00]} 75. Rf7+ {[%emt 0:00:00]} Ke5 {[%emt 0:01:15]} 76. Re7+ {[%emt 0:00:00]}
Kf6 {[%emt 0:00:46]} 77. Re1 {[%emt 0:00:00]} Kf5 {[%emt 0:01:08]} 78. Ra1 {
[%emt 0:00:00]} Kf4 {[%emt 0:00:00]} 79. Ra4+ {[%emt 0:00:00]} Ke3 {[%emt 0:00:
00]} 80. Ra3+ {[%emt 0:00:39]} Rd3 {[%emt 0:00:10]} 81. Ra1 {[%emt 0:00:00]}
Ke2 {[%emt 0:00:23]} 82. Ra2+ {[%emt 0:00:00]} Rd2 {[%emt 0:00:05]} 83. Rxd2+ {
[%emt 0:00:00]} Kxd2 {[%emt 0:00:08]} 84. Kf1 {[%emt 0:00:00]} Ke3 {[%emt 0:00:
00]} 85. Kg1 {[%emt 0:00:00]} Kf3 {[%emt 0:00:10]} 86. Kh1 {[%emt 0:00:00]} g2+
87. Kg1 {[%emt 0:00:00]} h2+ {[%emt 0:00:13]} 0-1